fUST/lending_fUST_20240126
["ID","MTS","AMOUNT","RATE_DAILY","PERIOD"]
[312784183,1706218241183,-345.87075786,0.00038799,15]
[312784184,1706218241193,-500.0,0.00038799,15]
[312784185,1706218241202,-500.0,0.00038799,15]
[312784187,1706218241211,-510.71297037,0.00038799,15]
[312784189,1706218241220,-500.0,0.00038799,15]
[312784190,1706218241230,-500.0,0.00038799,15]
[312784191,1706218241239,-477.39032001,0.00038799,15]
[312784192,1706218241249,-356.9972901,0.00038799,15]
[312784193,1706218241258,-500.0,0.00038799,15]
[312784194,1706218241268,-500.0,0.00038799,15]
[312784195,1706218241277,-500.0,0.00038799,15]
[312784196,1706218241286,-500.0,0.00038799,15]
[312784197,1706218241295,-500.0,0.00038799,15]
[312784198,1706218241305,-500.0,0.00038799,15]
[312784199,1706218241314,-500.0,0.00038799,15]
[312784200,1706218241323,-500.0,0.00038799,15]
[312784201,1706218241334,-500.0,0.00038799,15]
[312784202,1706218241343,-500.0,0.00038799,15]
[312784203,1706218241353,-500.0,0.00038799,15]
[312784204,1706218241362,-500.0,0.00038799,15]
[312784205,1706218241372,-500.0,0.00038799,15]
[312784206,1706218241381,-500.0,0.00038799,15]
[312784207,1706218241390,-500.0,0.00038799,15]
[312784208,1706218241400,-500.0,0.00038799,15]
[312784209,1706218241409,-500.0,0.00038799,15]
[312784210,1706218241418,-500.0,0.00038799,15]
[312784211,1706218241427,-500.0,0.00038799,15]
[312784212,1706218241437,-500.0,0.00038799,15]
[312784213,1706218241448,-500.0,0.00038799,15]
[312784214,1706218241458,-500.0,0.00038799,15]
[312784215,1706218241467,-500.0,0.00038799,15]
[312784216,1706218241478,-500.0,0.00038799,15]
[312784217,1706218241488,-500.0,0.00038799,15]
[312784218,1706218241499,-500.0,0.00038799,15]
[312784219,1706218241510,-500.0,0.00038799,15]
[312784220,1706218241521,-500.0,0.00038799,15]
[312784221,1706218241532,-500.0,0.00038799,15]
[312784222,1706218241549,-500.0,0.00038799,15]
[312784223,1706218241561,-500.0,0.00038799,15]
[312784224,1706218241576,-500.0,0.00038799,15]
[312784225,1706218241587,-293.28508702,0.00038799,15]
[312784226,1706218241666,-3639.45515351,0.000388,10]
[312784227,1706218241760,-19740.88773726,0.000388,10]
[312784245,1706218243366,-3116.07124475,0.000388,10]
[312784406,1706219432506,-154.93802479,0.00023933,4]
[312784408,1706219432516,-166.666666,0.00023934,2]
[312784410,1706219432526,-166.666666,0.00024586,2]
[312784412,1706219432535,-169.268043,0.00025024,2]
[312784414,1706219432545,-91.04678328,0.00025031,2]
[312784417,1706219432567,-78.14131272,0.00025031,2]
[312784419,1706219432578,-361.42368728,0.00025183,2]
[312784454,1706219438650,-4843.63278825,0.00025183,2]
[312784455,1706219438709,-2180.84877955,0.00025183,2]
[312784456,1706219438719,-4725.91421399,0.00025184,2]
[312784457,1706219438729,-24900.0,0.00025189,2]
[312784458,1706219438739,-166.666666,0.00025239,2]
[312784459,1706219438748,-152.82367298,0.00025826,2]
[312784460,1706219438758,-166.666666,0.00025891,2]
[312784461,1706219438768,-168.757275,0.00026101,2]
[312784462,1706219438777,-171.7717748,0.00026375,2]
[312784463,1706219438786,-166.666666,0.00026544,2]
[312784464,1706219438796,-290.53836744,0.00027,2]
[312784465,1706219438805,-235.35066267,0.00027086,2]
[312784466,1706219438814,-309.31860756,0.00027086,2]
[312784467,1706219438825,-185.70292517,0.00027086,2]
[312784468,1706219438834,-557.41463037,0.00027086,2]
[312784469,1706219438845,-1916.72029117,0.00027086,2]
[312784470,1706219438854,-1198.71036477,0.00027086,2]
[312784471,1706219438864,-154.97575891,0.00027086,2]
[312784472,1706219438874,-8653.83689169,0.00027086,2]
[312784473,1706219438883,-155.51017843,0.00027086,2]
[312784474,1706219438892,-3660.05483598,0.00027086,2]
[312784475,1706219438902,-12245.26,0.00027088,3]
[312784476,1706219438911,-4011.78855735,0.00027096,2]
[312784477,1706219438921,-421.27166736,0.00027096,2]
[312784478,1706219438934,-2074.94658461,0.00027096,2]
[312784479,1706219438944,-403.00414072,0.00027096,2]
[312784480,1706219438953,-1276.95029196,0.00027096,2]
[312784481,1706219438963,-470.87385711,0.00027096,2]
[312784482,1706219438972,-423.77056198,0.00027096,2]
[312784483,1706219438981,-323.23376189,0.00027097,2]
[312784484,1706219438990,-713.25472283,0.00027097,2]
[312784485,1706219439001,-1266.95335862,0.00027097,2]
[312784486,1706219439012,-276000.0,0.00027098,2]
[312784487,1706219439021,-166.666666,0.00027196,2]
[312784488,1706219439030,-161.66762662,0.0002724,2]
[312784489,1706219439039,-200.0,0.00027707,15]
[312784490,1706219439049,-153.0,0.00028219,2]
[312784491,1706219439058,-153.0,0.00028493,2]
[312784492,1706219439067,-250.5513808,0.00028493,2]
[312784493,1706219439078,-153.0,0.00028493,2]
[312784494,1706219439087,-1932.44477539,0.00029,2]
[312784495,1706219439096,-154.95351395,0.00029,2]
[312784496,1706219439105,-199.3339408,0.00029156,2]
[312784497,1706219439115,-153.0,0.00029178,2]
[312784498,1706219439124,-153.0,0.00029178,2]
[312784499,1706219439133,-153.0,0.00029178,2]
[312784500,1706219439143,-153.0,0.00029178,2]
[312784501,1706219439152,-153.0,0.00029315,2]
[312784502,1706219439161,-171.7059798,0.00029315,2]
[312784503,1706219439170,-153.0,0.00029315,2]
[312784504,1706219439179,-159.3657322,0.00029315,2]
[312784505,1706219439189,-153.0,0.00029315,2]
[312784506,1706219439198,-153.0,0.00029315,2]
[312784507,1706219439207,-199.3339408,0.00029315,2]
[312784508,1706219439216,-153.0,0.00029315,2]
[312784509,1706219439226,-199.3339408,0.00029315,2]
[312784510,1706219439235,-153.0,0.00029315,2]
[312784511,1706219439244,-153.0,0.00029315,2]
[312784512,1706219439254,-153.0,0.00029315,2]
[312784513,1706219439263,-153.0,0.00029315,2]
[312784514,1706219439273,-153.0,0.00029315,2]
[312784515,1706219439281,-153.0,0.00029315,2]
[312784516,1706219439291,-153.0,0.00029315,2]
[312784517,1706219439300,-153.0,0.00029315,2]
[312784518,1706219439309,-153.0,0.00029315,2]
[312784519,1706219439319,-153.0,0.00029315,2]
[312784520,1706219439328,-199.3339408,0.00029315,2]
[312784521,1706219439337,-153.0,0.00029315,2]
[312784522,1706219439346,-153.0,0.00029315,2]
[312784523,1706219439355,-199.3339408,0.00029315,2]
[312784524,1706219439365,-153.0,0.00029315,2]
[312784525,1706219439374,-153.0,0.00029315,2]
[312784526,1706219439384,-199.3339408,0.00029315,2]
[312784527,1706219439393,-153.0,0.00029315,2]
[312784528,1706219439402,-153.0,0.00029315,2]
[312784529,1706219439411,-153.0,0.00029315,2]
[312784530,1706219439421,-153.0,0.00029315,2]
[312784531,1706219439430,-199.3339408,0.00029315,2]
[312784532,1706219439439,-153.0,0.00029315,2]
[312784533,1706219439448,-153.0,0.00029315,2]
[312784534,1706219439458,-153.0,0.00029315,2]
[312784535,1706219439467,-153.0,0.00029315,2]
[312784536,1706219439476,-199.3339408,0.00029315,2]
[312784537,1706219439486,-153.0,0.00029589,2]
[312784538,1706219439495,-350.0,0.00029999,2]
[312784539,1706219439504,-500.0,0.00029999,2]
[312784540,1706219439608,-500.0,0.00029999,2]
[312784541,1706219439618,-192.77986745,0.00029999,2]
[312784542,1706219439627,-500.0,0.00029999,2]
[312784543,1706219439636,-500.0,0.00029999,2]
[312784544,1706219439645,-500.0,0.00029999,2]
[312784545,1706219439654,-500.0,0.00029999,2]
[312784546,1706219439664,-484.95922985,0.00029999,2]
[312784547,1706219439673,-571.33828928,0.00029999,2]
[312784548,1706219439682,-170.03961878,0.00029999,2]
[312784549,1706219439692,-512.38921039,0.00029999,2]
[312784550,1706219439701,-291.31420188,0.0003,3]
[312784551,1706219439710,-1000.0,0.0003,4]
[312784552,1706219439719,-2372.54255137,0.0003,2]
[312784553,1706219439728,-154.95351395,0.0003,4]
[312784554,1706219439737,-244.31917233,0.0003,4]
[312784555,1706219439747,-139264.62830083,0.0003,4]
[312784556,1706219439756,-195.4790082,0.0003,2]
[312784557,1706219439765,-688.78830185,0.0003,4]
[312784558,1706219439774,-155.74648817,0.0003,4]
[312784559,1706219439783,-269.0,0.0003,2]
[312784560,1706219439792,-153.0,0.00030137,2]
[312784561,1706219439801,-153.0,0.00030137,2]
[312784562,1706219439810,-153.0,0.00030137,2]
[312784563,1706219439819,-153.0,0.00030137,2]
[312784564,1706219439829,-153.0,0.00030137,2]
[312784565,1706219439840,-153.0,0.00030137,2]
[312784566,1706219439849,-153.0,0.00030137,2]
[312784567,1706219439858,-153.0,0.00030137,2]
[312784568,1706219439867,-153.0,0.00030137,2]
[312784569,1706219439876,-366.1405559,0.00030137,2]
[312784570,1706219439885,-153.0,0.00030137,2]
[312784571,1706219439894,-153.0,0.00030137,2]
[312784572,1706219439903,-153.0,0.00030137,2]
[312784573,1706219439913,-153.0,0.00030137,2]
[312784574,1706219439922,-310.3764171,0.00030137,2]
[312784575,1706219439934,-199.3339408,0.00030137,2]
[312784576,1706219439943,-199.3339408,0.00030137,2]
[312784577,1706219439952,-199.3339408,0.00030137,2]
[312784578,1706219439961,-199.3339408,0.00030137,2]
[312784579,1706219439972,-199.3339408,0.00030137,2]
[312784580,1706219439980,-199.3339408,0.00030137,2]
[312784581,1706219439989,-199.3339408,0.00030137,2]
[312784582,1706219439998,-360.9795669,0.00030137,2]
[312784583,1706219440008,-215.885745,0.00030137,2]
[312784584,1706219440017,-157.894736,0.00030137,2]
[312784585,1706219440026,-280.0,0.00030477,15]
[312784586,1706219440036,-157.894736,0.00030746,2]
[312784587,1706219440044,-326.58097042,0.00031,7]
[312784588,1706219440053,-215.885745,0.00031115,2]
[312784589,1706219440062,-157.894736,0.00031355,2]
[312784590,1706219440071,-157.894736,0.00031963,2]
[312784591,1706219440080,-215.885745,0.00032094,2]
[312784592,1706219440090,-157.894736,0.00032572,2]
[312784593,1706219440099,-3357.62841047,0.00032837,2]
[312784594,1706219440107,-837.0527842,0.00032837,2]
[312784595,1706219440116,-251.11583526,0.00032837,2]
[312784596,1706219440126,-179.5901026,0.00032837,2]
[312784597,1706219440135,-15574.635097,0.00032877,2]
[312784598,1706219440144,-154.95351395,0.0003298,2]
[312784599,1706219440153,-154.95351395,0.00033,4]
[312784600,1706219440163,-269.0,0.00033,2]
[312784601,1706219440172,-215.885745,0.00033072,2]
[312784602,1706219440180,-157.894736,0.00033181,2]
[312784603,1706219440189,-391.0,0.00033525,15]
[312784604,1706219440197,-157.894736,0.0003379,2]
[312784605,1706219440206,-215.885745,0.00034051,2]
[312784606,1706219440214,-646.49007196,0.00034144,2]
[312784607,1706219440223,-246.5520124,0.00034247,2]
[312784608,1706219440233,-157.894736,0.00034399,2]
[312784609,1706219440241,-154.95351395,0.00035,2]
[312784610,1706219440249,-184.66976843,0.00035,2]
[312784611,1706219440258,-657.40715545,0.00035,7]
[312784612,1706219440267,-2359.3181247,0.00035,2]
[312784613,1706219440275,-476.44274189,0.00035,4]
[312784614,1706219440284,-1523.18315753,0.00035,2]
[312784615,1706219440293,-157.894736,0.00035008,2]
[312784616,1706219440302,-215.885745,0.00035029,2]
[312784617,1706219440310,-1081.1,0.00035616,2]
[312784618,1706219440318,-1081.1,0.00035616,2]
[312784619,1706219440328,-1081.1,0.00035616,2]
[312784620,1706219440337,-1081.1,0.00035616,2]
[312784621,1706219440345,-1081.1,0.00035616,2]
[312784622,1706219440354,-1081.1,0.00035616,2]
[312784623,1706219440362,-1081.1,0.00035616,2]
[312784624,1706219440371,-1081.1,0.00035616,2]
[312784625,1706219440379,-1081.1,0.00035616,2]
[312784626,1706219440386,-1081.1,0.00035616,2]
[312784627,1706219440392,-1081.1,0.00035616,2]
[312784628,1706219440399,-1081.1,0.00035616,2]
[312784629,1706219440406,-1081.1,0.00035616,2]
[312784630,1706219440412,-1081.1,0.00035616,2]
[312784631,1706219440420,-1081.1,0.00035616,2]
[312784632,1706219440426,-1081.1,0.00035616,2]
[312784633,1706219440434,-1081.1,0.00035616,2]
[312784634,1706219440441,-1081.1,0.00035616,2]
[312784635,1706219440448,-1081.1,0.00035616,2]
[312784636,1706219440456,-1081.1,0.00035616,2]
[312784637,1706219440466,-1081.1,0.00035616,2]
[312784638,1706219440475,-1081.1,0.00035616,2]
[312784639,1706219440484,-1081.1,0.00035616,2]
[312784640,1706219440493,-1081.19102445,0.00035616,2]
[312784641,1706219440503,-157.894736,0.00035616,2]
[312784642,1706219440512,-85940.91152811,0.00035723,3]
[312784643,1706219440521,-5000.0,0.00035723,7]
[312784644,1706219440530,-14219.51521224,0.00035723,3]
[312784645,1706219440539,-5000.0,0.00035723,7]
[312784646,1706219440548,-5000.0,0.00035755,7]
[312784647,1706219440557,-3712.95441819,0.00035755,3]
[312784648,1706219440566,-621.3245036,0.00035851,2]
[312784649,1706219440576,-353.0,0.0003589,2]
[312784650,1706219440586,-154.95351395,0.00036,4]
[312784651,1706219440595,-353.0,0.00036,2]
[312784652,1706219440604,-269.0,0.00036,2]
[312784653,1706219440613,-215.885745,0.00036008,2]
[312784654,1706219440623,-157.894736,0.00036225,2]
[312784655,1706219440632,-157.894736,0.00036834,2]
[312784656,1706219440641,-200.0,0.00036878,15]
[312784657,1706219440651,-348.0,0.00036878,15]
[312784658,1706219440660,-215.885745,0.00036986,2]
[312784659,1706219440669,-353.0,0.00037397,2]
[312784660,1706219440678,-157.894736,0.00037443,2]
[312784661,1706219440687,-620.06622518,0.00037644,2]
[312784662,1706219440696,-96942.92450836,0.0003767,2]
[312784663,1706219440706,-276.87,0.000378,4]
[312784664,1706219440715,-215.885745,0.00037965,2]
[312784665,1706219440724,-157.894736,0.00038052,2]
[312784667,1706219440734,-151.0,0.00038099,2]
[312784668,1706219440743,-1000.0,0.00038212,10]
[312784670,1706219440752,-2147.50028627,0.000385,4]
[312784673,1706219440762,-157.894736,0.0003866,2]
[312784674,1706219440771,-233.62993,0.000387,2]
[312784676,1706219440780,-1821.34095019,0.00038788,2]
[312784678,1706219440789,-172931.7943891,0.000388,10]
[312784679,1706219440798,-6025.8030232,0.000388,4]
[312784685,1706219441786,-103.87415842,0.000388,4]
[312784686,1706219441796,-375.96014132,0.000388,4]
[312784687,1706219441805,-351.67065141,0.000388,7]
[312784688,1706219441815,-407.93473902,0.000388,4]
[312784689,1706219441824,-454.70291986,0.000388,4]
[312784690,1706219441834,-2454.66425031,0.000388,2]
[312784691,1706219441843,-1027.07329031,0.000388,2]
[312784692,1706219441853,-300.0,0.000388,4]
[312784693,1706219441862,-2801.88705417,0.000388,4]
[312784694,1706219441871,-154.95351395,0.000388,7]
[312784695,1706219441881,-687.23319626,0.000388,4]
[312784696,1706219441890,-215.885745,0.00038943,2]
[312784697,1706219441899,-358.0,0.00039267,14]
[312784698,1706219441909,-157.894736,0.00039269,2]
[312784699,1706219441920,-620.00331126,0.00039526,2]
[312784700,1706219441930,-5000.0,0.00039816,7]
[312784701,1706219441940,-5000.0,0.00039816,7]
[312784702,1706219441949,-157.894736,0.00039878,2]
[312784703,1706219441959,-215.885745,0.00039922,2]
[312784704,1706219441969,-29192.26033449,0.0003994,7]
[312784711,1706219444648,-199.3339408,0.00029315,2]
[312784712,1706219444658,-414.77936762,0.00035713,3]
[312784810,1706220633293,-154.92253873,0.00024234,2]
[312784811,1706220633308,-154.92253873,0.00024235,4]
[312784812,1706220633319,-817.86055778,0.0002424,2]
[312784834,1706220637784,-24082.13944222,0.0002424,2]
[312784836,1706220637794,-976.79905731,0.00024296,2]
[312784838,1706220637804,-168.843439,0.00024345,2]
[312784840,1706220637813,-152.82367298,0.00024519,2]
[312784842,1706220637822,-1263.031096,0.0002462,2]
[312784843,1706220637831,-171.771773,0.00024696,2]
[312784844,1706220637841,-4725.91421399,0.00025,2]
[312784845,1706220637852,-7385.90525508,0.00025,2]
[312784846,1706220637862,-168.7572768,0.00025091,2]
[312784847,1706220637871,-166.666666,0.00025926,2]
[312784848,1706220637880,-250.0,0.00026375,2]
[312784849,1706220637890,-166.666666,0.00026633,2]
[312784850,1706220637899,-200.0,0.00026663,15]
[312784851,1706220637908,-161.66762662,0.000269,2]
[312784852,1706220637917,-2264.18467325,0.00026956,3]
[312784853,1706220637954,-1728.9315804,0.00026956,3]
[312784856,1706220637970,-9463.59374635,0.00026956,3]
[312784858,1706220637979,-421.27166736,0.00026986,2]
[312784861,1706220637988,-557.41463037,0.00026986,2]
[312784862,1706220637997,-23263.53,0.00026986,3]
[312784863,1706220638006,-235.35066267,0.00026987,2]
[312784864,1706220638014,-1916.72029117,0.00026987,2]
[312784865,1706220638024,-470.87385711,0.00026996,2]
[312784866,1706220638034,-713.25472283,0.00026996,2]
[312784867,1706220638042,-403.00414072,0.00026996,2]
[312784868,1706220638051,-323.23376189,0.00026996,2]
[312784869,1706220638061,-2074.94658461,0.00026996,2]
[312784870,1706220638070,-4011.78855735,0.00026996,2]
[312784871,1706220638079,-3660.05483598,0.00026996,2]
[312784872,1706220638089,-8653.83689169,0.00026996,2]
[312784873,1706220638098,-155.51017843,0.00026996,2]
[312784874,1706220638108,-154.97575891,0.00026996,2]
[312784875,1706220638117,-1198.71036477,0.00026996,2]
[312784876,1706220638126,-309.31860756,0.00026996,2]
[312784877,1706220638135,-185.70292517,0.00026996,2]
[312784878,1706220638144,-423.77056198,0.00026996,2]
[312784879,1706220638154,-1276.95029196,0.00026997,2]
[312784880,1706220638163,-1266.95335862,0.00026997,2]
[312784881,1706220638172,-276000.0,0.00026998,2]
[312784882,1706220638181,-290.53836744,0.00027,2]
[312784883,1706220638190,-166.666666,0.0002734,2]
[312784884,1706220638199,-166.666666,0.00028047,2]
[312784885,1706220638208,-153.0,0.00028493,2]
[312784886,1706220638218,-166.666666,0.00028754,2]
[312784887,1706220638227,-16794.35324464,0.000289,2]
[312784888,1706220638236,-154.93802479,0.00029,2]
[312784889,1706220638245,-1932.44477539,0.00029,2]
[312784890,1706220638253,-833.4574876,0.00029,2]
[312784891,1706220638262,-2038.7168945,0.00029,2]
[312784892,1706220638271,-153.0,0.00029178,2]
[312784893,1706220638280,-153.0,0.00029178,2]
[312784894,1706220638290,-153.0,0.00029178,2]
[312784895,1706220638303,-153.0,0.00029178,2]
[312784896,1706220638312,-153.0,0.00029178,2]
[312784897,1706220638321,-153.0,0.00029315,2]
[312784898,1706220638330,-159.3657322,0.00029315,2]
[312784899,1706220638339,-153.0,0.00029315,2]
[312784900,1706220638348,-171.7059798,0.00029315,2]
[312784901,1706220638358,-199.3339408,0.00029315,2]
[312784902,1706220638367,-153.0,0.00029315,2]
[312784903,1706220638376,-153.0,0.00029315,2]
[312784904,1706220638385,-250.5513808,0.00029315,2]
[312784905,1706220638394,-153.0,0.00029315,2]
[312784906,1706220638403,-153.0,0.00029315,2]
[312784907,1706220638412,-153.0,0.00029315,2]
[312784908,1706220638421,-199.3339408,0.00029315,2]
[312784909,1706220638430,-153.0,0.00029315,2]
[312784910,1706220638439,-153.0,0.00029315,2]
[312784911,1706220638449,-153.0,0.00029315,2]
[312784912,1706220638458,-153.0,0.00029315,2]
[312784913,1706220638468,-153.0,0.00029315,2]
[312784914,1706220638477,-153.0,0.00029315,2]
[312784915,1706220638485,-153.0,0.00029315,2]
[312784916,1706220638495,-199.3339408,0.00029315,2]
[312784917,1706220638503,-153.0,0.00029315,2]
[312784918,1706220638513,-153.0,0.00029315,2]
[312784919,1706220638522,-153.0,0.00029315,2]
[312784920,1706220638531,-153.0,0.00029315,2]
[312784921,1706220638540,-153.0,0.00029315,2]
[312784922,1706220638549,-153.0,0.00029315,2]
[312784923,1706220638558,-153.0,0.00029315,2]
[312784924,1706220638567,-153.0,0.00029315,2]
[312784925,1706220638576,-153.0,0.00029315,2]
[312784926,1706220638585,-280.0,0.00029329,15]
[312784927,1706220638595,-199.3339408,0.00029378,2]
[312784928,1706220638604,-199.3339408,0.00029378,2]
[312784929,1706220638614,-166.666666,0.00029461,2]
[312784930,1706220638623,-153.0,0.00029589,2]
[312784931,1706220638633,-2543.41353878,0.0002979,7]
[312784932,1706220638643,-291.31420188,0.0003,3]
[312784933,1706220638652,-688.78830185,0.0003,4]
[312784934,1706220638661,-2372.54255137,0.0003,2]
[312784935,1706220638670,-1000.0,0.0003,4]
[312784936,1706220638680,-139264.62830083,0.0003,4]
[312784937,1706220638689,-244.31917233,0.0003,4]
[312784938,1706220638698,-155.74648817,0.0003,4]
[312784939,1706220638707,-166.95729913,0.0003,2]
[312784940,1706220638717,-1301.38907477,0.0003,2]
[312784941,1706220638726,-2718.33227316,0.0003,2]
[312784942,1706220638736,-6202.72987763,0.0003,2]
[312784943,1706220638745,-2195.13400402,0.0003,2]
[312784944,1706220638754,-4988.57079427,0.0003,3]
[312784945,1706220638764,-18606.04614329,0.0003,2]
[312784946,1706220638773,-700.57786282,0.0003,2]
[312784947,1706220638782,-154.92253873,0.0003,4]
[312784948,1706220638793,-271.0,0.0003,2]
[312784949,1706220638802,-153.0,0.00030137,2]
[312784950,1706220638812,-153.0,0.00030137,2]
[312784951,1706220638822,-310.3764171,0.00030137,2]
[312784952,1706220638832,-199.3339408,0.00030137,2]
[312784953,1706220638841,-199.3339408,0.00030137,2]
[312784954,1706220638852,-199.3339408,0.00030137,2]
[312784955,1706220638860,-199.3339408,0.00030137,2]
[312784956,1706220638870,-199.3339408,0.00030137,2]
[312784957,1706220638879,-199.3339408,0.00030137,2]
[312784958,1706220638888,-199.3339408,0.00030137,2]
[312784959,1706220638897,-199.3339408,0.00030137,2]
[312784960,1706220638908,-199.3339408,0.00030137,2]
[312784961,1706220638918,-153.0,0.00030137,2]
[312784962,1706220638928,-360.9795669,0.00030137,2]
[312784963,1706220638937,-153.0,0.00030137,2]
[312784964,1706220638947,-153.0,0.00030137,2]
[312784965,1706220638957,-153.0,0.00030137,2]
[312784966,1706220638966,-153.0,0.00030137,2]
[312784967,1706220638975,-153.0,0.00030137,2]
[312784968,1706220638984,-153.0,0.00030137,2]
[312784969,1706220638993,-153.0,0.00030137,2]
[312784970,1706220639003,-153.0,0.00030137,2]
[312784971,1706220639013,-153.0,0.00030137,2]
[312784972,1706220639023,-153.0,0.00030137,2]
[312784973,1706220639033,-153.0,0.00030137,2]
[312784974,1706220639042,-153.0,0.00030137,2]
[312784975,1706220639052,-153.0,0.00030137,2]
[312784976,1706220639062,-366.1405559,0.00030137,2]
[312784977,1706220639072,-157.894736,0.00030137,2]
[312784978,1706220639081,-187.100979,0.00030137,2]
[312784979,1706220639091,-153.0,0.000302,2]
[312784980,1706220639102,-153.0,0.000302,2]
[312784981,1706220639112,-154.93802479,0.00030356,2]
[312784982,1706220639121,-157.894736,0.00030746,2]
[312784983,1706220639130,-500.0,0.00030999,2]
[312784984,1706220639140,-170.03961878,0.00030999,2]
[312784985,1706220639149,-500.0,0.00030999,2]
[312784986,1706220639158,-500.0,0.00030999,2]
[312784987,1706220639168,-512.38921039,0.00030999,2]
[312784988,1706220639177,-571.33828928,0.00030999,2]
[312784989,1706220639187,-500.0,0.00030999,2]
[312784990,1706220639196,-500.0,0.00030999,2]
[312784991,1706220639206,-350.0,0.00030999,2]
[312784992,1706220639215,-484.95922985,0.00030999,2]
[312784993,1706220639224,-500.0,0.00030999,2]
[312784994,1706220639234,-380.86651939,0.00030999,2]
[312784995,1706220639243,-326.58097042,0.00031,7]
[312784996,1706220639252,-308477.0925742,0.00031,2]
[312784997,1706220639262,-161.66762662,0.00031015,2]
[312784998,1706220639271,-187.100979,0.00031115,2]
[312784999,1706220639281,-157.894736,0.00031355,2]
[312785000,1706220639291,-646.48676072,0.00031679,2]
[312785001,1706220639305,-157.894736,0.00031963,2]
[312785002,1706220639315,-9502.11081765,0.00032,10]
[312785003,1706220639324,-38573.60017327,0.00032,15]
[312785004,1706220639334,-3137.0499637,0.00032,2]
[312785005,1706220639343,-187.100979,0.00032094,2]
[312785006,1706220639355,-391.0,0.00032262,15]
[312785007,1706220639365,-157.894736,0.00032572,2]
[312785008,1706220639375,-3937.77099277,0.00032864,2]
[312785009,1706220639385,-562.28760804,0.00032864,2]
[312785010,1706220639395,-440.19766291,0.00032864,2]
[312785011,1706220639404,-221.17162573,0.00032864,2]
[312785012,1706220639413,-15574.635097,0.00032877,2]
[312785013,1706220639423,-154.93802479,0.00033,4]
[312785014,1706220639432,-187.100979,0.00033072,2]
[312785015,1706220639441,-157.894736,0.00033181,2]
[312785016,1706220639451,-621.32433804,0.00033263,2]
[312785017,1706220639460,-157.894736,0.0003379,2]
[312785018,1706220639469,-45181.96468513,0.00034,2]
[312785019,1706220639479,-187.100979,0.00034051,2]
[312785020,1706220639487,-246.5520124,0.00034247,2]
[312785021,1706220639588,-157.894736,0.00034399,2]
[312785022,1706220639599,-620.0662169,0.00034926,2]
[312785023,1706220639610,-154.93802479,0.00035,2]
[312785024,1706220639620,-333.50991933,0.00035,4]
[312785025,1706220639630,-846.2128653,0.00035,2]
[312785026,1706220639642,-2359.3181247,0.00035,2]
[312785027,1706220639652,-657.40715545,0.00035,7]
[312785028,1706220639662,-184.66976843,0.00035,2]
[312785029,1706220639672,-48717.90607386,0.00035,2]
[312785030,1706220639681,-10172.98608814,0.00035,2]
[312785031,1706220639691,-406.2351095,0.00035,2]
[312785032,1706220639702,-157.894736,0.00035008,2]
[312785033,1706220639713,-187.100979,0.00035029,2]
[312785034,1706220639724,-200.0,0.00035488,15]
[312785035,1706220639734,-348.0,0.00035488,15]
[312785036,1706220639743,-1081.1,0.00035616,2]
[312785037,1706220639753,-1081.1,0.00035616,2]
[312785038,1706220639763,-1081.1,0.00035616,2]
[312785039,1706220639772,-1081.1,0.00035616,2]
[312785040,1706220639781,-618.15830617,0.00035616,2]
[312785092,1706221403776,200.0,0.0003,120]
[312785244,1706221838039,-154.92253873,0.00023926,4]
[312785246,1706221838051,-149.79756045,0.00023927,2]
[312785248,1706221838067,-3.02611253,0.00023927,2]
[312785250,1706221838080,-11348.29984182,0.0002395,2]
[312785252,1706221838097,-13551.70015818,0.0002395,2]